bitfinex/quotes_ETHUSD_20241001
["timestamp","ask_amount","ask_price","bid_price","bid_amount"]
[1727802749296,1.6329,2500.4,2500.0,0.55]
[1727802749525,3.99956,2500.3,2499.7,4.00036]
[1727802749698,3.99956,2500.3,2499.6,5.12636747]
[1727802749699,3.99992,2500.1,2499.6,0.55]
[1727802750096,3.9997,2500.2,2499.6,1.005068]
[1727802750549,3.99961,2500.3,2499.6,5.005638]
[1727802750743,3.99929,2500.5,2499.9,4.00001]
[1727802750949,3.99929,2500.5,2500.0,4.5499]
[1727802751254,0.41759904,2500.9,2500.4,0.55]
[1727802751400,0.41759904,2500.9,2500.5,4.54905]
[1727802751752,4.1191524,2501.7,2501.0,3.99834]
[1727802751753,4.1192324,2501.7,2501.0,3.99834]
[1727802751902,4.1192324,2501.7,2501.2,9.12434747]
[1727802751903,0.5394759,2501.7,2501.2,9.12434747]
[1727802752105,3.99754,2501.6,2501.2,5.12636747]
[1727802752347,0.1218324,2501.7,2501.3,0.55]
[1727802752662,0.1218324,2501.7,2501.6,5.67636747]
[1727802753457,0.15949506,2501.7,2501.6,14.22220747]
[1727802753803,0.1218324,2501.7,2501.6,14.22220747]
[1727802754009,0.1218324,2501.7,2501.6,6.09584]
[1727802754343,0.1218324,2501.7,2501.6,0.55]
[1727802754641,0.1218324,2501.7,2501.3,8.12161275]
[1727802754642,0.15728618,2501.7,2501.3,0.55]
[1727802754946,0.15728618,2501.7,2500.8,6.73996747]
[1727802754947,0.5727408,2501.7,2500.8,6.73996747]
[1727802755146,0.5727408,2501.7,2501.2,3.99805]
[1727802755147,0.15728618,2501.7,2501.2,3.99805]
[1727802755319,0.15728618,2501.7,2500.8,6.73996747]
[1727802755320,0.1218324,2501.7,2501.1,3.99808]
[1727802755528,0.03759273,2501.6,2501.1,3.99808]
[1727802755720,0.03759273,2501.6,2501.3,3.99781]
[1727802756042,0.03759273,2501.6,2501.4,4.54775]
[1727802756217,0.03759273,2501.6,2501.4,0.55]
[1727802756425,0.1218324,2501.7,2500.9,3.99849]
[1727802756610,0.1218324,2501.7,2500.8,1.6136]
[1727802756611,0.03504444,2501.5,2501.1,3.99813]
[1727802756805,4.1191124,2501.7,2501.1,3.99813]
[1727802757012,0.03755202,2501.5,2501.1,3.99813]
[1727802757309,4.53102364,2501.7,2501.1,3.99813]
[1727802757510,0.03764235,2501.6,2501.1,3.99813]
[1727802757736,0.03764235,2501.6,2501.0,4.54839]
[1727802757942,0.53374364,2501.7,2500.9,0.55]
[1727802758128,0.53374364,2501.7,2500.8,8.61221]
[1727802758129,3.99789,2501.4,2500.8,8.61221]
[1727802758348,3.99789,2501.4,2500.8,5.61221]
[1727802758634,3.9975,2501.6,2500.8,1.6136]
[1727802758839,4.1192424,2501.7,2500.9,3.99849]
[1727802759071,0.1218324,2501.7,2501.1,3.99808]
[1727802759353,0.1218324,2501.7,2501.4,3.99775]
[1727802759526,0.1218324,2501.7,2501.3,0.55]
[1727802759716,0.1218324,2501.7,2500.8,5.61222]
[1727802759717,0.1218324,2501.7,2501.1,0.55]
[1727802759918,0.1218324,2501.7,2501.2,3.99804]
[1727802760250,0.1218324,2501.7,2501.3,0.62976303]
[1727802760459,0.1218324,2501.7,2501.0,3.99832]
[1727802760460,3.99753,2501.6,2501.1,0.55]
[1727802760668,3.99753,2501.6,2501.0,3.99829]
[1727802760811,0.1218324,2501.7,2501.1,0.55]
[1727802761326,0.1218324,2501.7,2500.7,5.12636747]
[1727802761538,0.1218324,2501.7,2501.1,5.12636747]
[1727802761752,3.99744,2501.6,2500.9,3.99841]
[1727802762055,3.99744,2501.6,2501.1,3.99823]
[1727802762259,3.99776,2501.4,2500.9,3.99841]
[1727802762414,3.99776,2501.4,2500.9,7.99688]
[1727802762614,4.80917724,2501.6,2500.8,1.5208]
[1727802762615,0.81164724,2501.6,2500.8,3.0]
[1727802762842,3.9985,2501.0,2500.5,3.9991]
[1727802763050,1.6476,2500.8,2499.6,1.5954]
[1727802763356,1.6476,2500.8,2499.5,4.00077]
[1727802763357,4.0,2500.0,2499.5,4.00077]
[1727802763561,3.0,2500.7,2499.3,1.6615]
[1727802763562,4.00016,2499.9,2499.3,5.6625]
[1727802763856,4.00032,2499.8,2499.3,8.00214]
[1727802764030,8.00074,2499.8,2499.1,4.00136]
[1727802764213,4.00057,2499.7,2498.5,1.594]
[1727802764409,4.00057,2499.7,2499.1,4.00129]
[1727802764657,4.00066,2499.6,2499.1,4.00129]
[1727802764867,4.00057,2499.7,2499.1,4.00141]
[1727802765014,4.00051,2499.7,2499.1,4.801716]
[1727802765215,4.00102,2499.4,2498.7,4.00203]
[1727802765433,4.00056,2499.7,2499.2,4.00127]
[1727802765631,8.00113,2499.7,2499.0,4.00145]
[1727802765867,4.00056,2499.7,2499.0,4.00159]
[1727802766070,4.00056,2499.7,2499.1,4.00142]
[1727802766279,4.00056,2499.7,2499.0,4.00159]
[1727802766475,4.00074,2499.6,2498.5,6.72036747]
[1727802766768,5.66049,2500.1,2498.9,4.00175]
[1727802766769,1.6606,2500.1,2498.9,4.00175]
[1727802767072,4.00089,2499.5,2498.9,8.00331]
[1727802767272,4.00089,2499.5,2498.9,4.00165]
[1727802767636,4.00097,2499.4,2498.9,4.00165]
[1727802767967,4.00089,2499.5,2499.0,0.55]
[1727802768981,4.00076,2499.6,2499.0,4.55151]
[1727802769144,4.00088,2499.5,2499.0,0.55]
[1727802769345,4.00113,2499.3,2498.8,0.55]
[1727802769576,4.00113,2499.3,2498.8,1.11242677]
[1727802770070,9.07832446,2500.1,2498.3,4.00262]
[1727802770071,4.00187,2498.9,2498.3,4.00262]
[1727802770277,4.00208,2498.7,2498.2,5.5146]
[1727802770885,4.00208,2498.7,2497.8,4.00349]
[1727802770886,4.00242,2498.5,2497.8,1.5118]
[1727802771036,1.5988,2498.7,2497.8,1.5118]
[1727802771037,5.60098,2498.7,2497.8,1.5118]
[1727802771241,5.60098,2498.7,2497.5,1.6378]
[1727802771242,4.00248,2498.5,2497.5,1.6378]
[1727802771633,4.00248,2498.5,2497.9,4.00321]
[1727802771939,4.00248,2498.5,2497.8,4.00342]
[1727802772279,4.00275,2498.3,2497.6,8.00748]
[1727802772438,4.0034,2497.9,2497.5,1.6378]
[1727802772778,4.00282,2498.3,2497.7,4.00356]
[1727802773014,4.00282,2498.3,2497.5,4.568097]
[1727802773172,4.00289,2498.2,2497.6,4.00374]
[1727802773572,4.00282,2498.3,2497.7,4.08372184]
[1727802773927,4.00281,2498.3,2497.8,0.55]
[1727802774204,1.6045,2498.4,2497.9,0.455357]
[1727802774205,4.00266,2498.4,2497.9,0.455357]
[1727802774409,4.00272,2498.3,2497.8,1.70206185]
[1727802774621,4.00306,2498.1,2497.6,0.55]
[1727802774853,4.00362,2497.8,2497.1,5.54995]
[1727802774991,4.0023,2498.6,2496.9,4.00486]
[1727802774992,4.00392,2497.6,2496.9,4.00486]
[1727802775315,4.00417,2497.4,2496.7,5.50669]
[1727802775484,5.57923,2497.9,2496.1,5.12636747]
[1727802775485,4.00388,2497.6,2496.4,1.5175]
[1727802775683,4.00376,2497.7,2497.1,4.00456]
[1727802775872,1.5758,2497.9,2497.3,4.00423]
[1727802775873,5.57924,2497.9,2497.3,4.00423]
[1727802776075,4.00335,2498.0,2497.3,0.400423]
[1727802776310,4.00329,2498.0,2497.3,4.00423]
[1727802776482,4.00329,2498.0,2497.4,4.00416]
[1727802776882,8.0066,2498.0,2497.4,4.00416]
[1727802777120,4.00329,2498.0,2497.3,4.00421]
[1727802777275,1.6299,2498.2,2497.5,4.0039]
[1727802777276,4.00314,2498.1,2497.5,4.0039]
[1727802777616,4.00314,2498.1,2497.5,4.45929]
[1727802777913,4.00324,2498.0,2497.5,0.45539]
[1727802778222,1.6299,2498.2,2497.6,0.55]
[1727802778376,1.6299,2498.2,2497.8,0.55]
[1727802778581,5.63282,2498.2,2497.8,0.55]
[1727802778811,5.63282,2498.2,2497.7,0.55]
[1727802779135,4.00304,2498.1,2497.7,0.55]
[1727802779515,4.00304,2498.1,2497.8,0.02739525]
[1727802779679,4.00304,2498.1,2497.7,0.55]
[1727802779680,4.00322,2498.0,2497.5,0.55]
[1727802780018,4.00322,2498.0,2496.7,0.53779822]
[1727802780019,1.6299,2498.2,2497.0,7.00471]
[1727802780329,4.00376,2497.7,2496.6,4.00541]
[1727802780538,4.00376,2497.7,2497.2,4.0044]
[1727802780826,4.00376,2497.7,2497.0,4.0047]
[1727802781027,4.00376,2497.7,2497.1,5.52206]
[1727802781248,4.00424,2497.4,2496.9,4.00489]
[1727802781389,4.00469,2497.1,2496.8,1.5767]
[1727802781592,8.00949,2497.1,2496.5,4.0056]
[1727802781845,4.00469,2497.1,2496.5,4.806652]
[1727802782023,4.00411,2497.5,2496.8,4.00504]
[1727802782325,4.00411,2497.5,2496.6,0.08009667]
[1727802782326,1.659,2497.6,2496.9,0.08009088]
[1727802782647,4.0044,2497.3,2496.9,0.08009088]
[1727802782789,1.659,2497.6,2497.0,4.00479]
[1727802782989,4.00222,2498.7,2496.8,1.5974]
[1727802782990,8.00694,2497.9,2497.3,4.00429]
[1727802783223,4.00315,2498.1,2497.5,0.55]
[1727802783448,4.00315,2498.1,2497.6,4.05982364]
[1727802783748,4.00315,2498.1,2497.6,0.05598364]
[1727802784037,1.5349,2498.3,2497.6,0.05598364]
[1727802784038,4.00349,2497.9,2497.6,0.05598364]
[1727802784324,1.5349,2498.3,2497.6,0.05598364]
[1727802784325,4.00312,2498.1,2497.6,0.62369536]
[1727802784523,8.00689,2497.9,2497.6,0.62369536]
[1727802784735,4.00339,2497.9,2497.6,0.62369536]
[1727802785137,1.5713,2498.7,2497.6,0.62369536]
[1727802785426,4.00215,2498.7,2498.2,0.55]
[1727802785741,4.00241,2498.5,2498.2,0.55]
[1727802785894,4.00281,2498.3,2497.8,0.55]
[1727802786092,4.00305,2498.1,2497.7,0.55]
[1727802786496,4.00291,2498.2,2497.7,0.55]
[1727802786689,4.00353,2497.8,2497.2,4.5868]
[1727802787036,4.00368,2497.7,2497.2,4.5868]
[1727802787208,4.00386,2497.6,2497.1,0.400479]
[1727802787412,4.00436,2497.3,2496.9,1.5868]
[1727802787612,4.00436,2497.3,2496.7,8.0104]
[1727802787948,4.00453,2497.2,2496.7,4.00526]
[1727802788145,4.00453,2497.2,2496.5,5.52711]
[1727802788146,4.00464,2497.1,2496.5,5.52711]
[1727802788735,4.0049,2497.0,2496.5,1.5216]
[1727802788952,1.665,2497.9,2496.5,1.5216]
[1727802789246,3.0,2497.5,2496.5,5.52711]
[1727802789441,4.00442,2497.3,2496.7,4.00517]
[1727802789661,7.0041,2497.5,2496.9,8.00988]
[1727802789953,4.00417,2497.4,2497.0,0.06812806]
[1727802790101,4.00446,2497.3,2496.5,5.52705]
[1727802790305,4.00463,2497.2,2496.6,4.00536]
[1727802790558,4.00484,2497.0,2496.5,2.074305]
[1727802790704,1.5137,2497.2,2496.2,4.006]
[1727802790907,1.5137,2497.2,2495.8,5.63681]
[1727802790908,4.00577,2496.4,2495.8,5.63681]
[1727802791304,4.00595,2496.3,2495.8,1.6302]
[1727802791505,4.00577,2496.4,2495.8,5.63681]
[1727802791738,4.00577,2496.4,2495.8,1.6302]
[1727802791739,4.00602,2496.3,2495.8,1.6302]
[1727802791952,4.00577,2496.4,2495.8,5.63683]
[1727802792164,4.00555,2496.6,2495.8,2.594578]
[1727802792453,4.00523,2496.8,2496.1,4.00616]
[1727802792608,4.00566,2496.5,2495.9,4.00654]
[1727802792916,4.00566,2496.5,2495.9,4.00648]
[1727802793115,3.0,2497.0,2495.8,1.6302]
[1727802793116,4.00595,2496.3,2495.8,1.6302]
[1727802793501,1.5972,2496.4,2495.9,4.00648]
[1727802793751,4.00546,2496.6,2495.9,4.00648]
[1727802794043,8.01075,2496.7,2496.1,4.00624]
[1727802794250,4.00529,2496.7,2495.9,3.563668]
[1727802794407,4.00505,2496.9,2496.0,0.57029359]
[1727802794609,4.00505,2496.9,2496.2,4.55607]
[1727802794610,4.0053,2496.7,2496.2,4.55607]
[1727802794837,4.00504,2496.9,2496.2,4.55607]
[1727802795055,4.00504,2496.9,2496.4,0.55]
[1727802795268,4.00504,2496.9,2496.0,4.00634]
[1727802795269,4.00548,2496.6,2496.0,4.00638]
[1727802795550,4.00548,2496.6,2496.0,4.5564]
[1727802795708,4.00562,2496.5,2496.0,4.5564]
[1727802795906,8.01044,2496.8,2496.0,4.5563]
[1727802796243,4.00522,2496.8,2496.2,0.55]
[1727802796419,4.00554,2496.6,2496.2,0.55]
[1727802796749,4.0058,2496.4,2496.0,0.55]
[1727802796961,1.6384,2496.9,2495.9,0.55]
[1727802797247,4.00618,2496.2,2495.9,0.55]
[1727802797610,4.00599,2496.3,2495.9,0.55]
[1727802797805,4.00588,2496.4,2495.9,0.55]
[1727802798007,4.00588,2496.4,2495.8,1.6302]
[1727802798008,4.00587,2496.4,2495.8,1.6302]
[1727802798309,4.00587,2496.4,2495.8,2.193911]
[1727802798532,8.01179,2496.4,2495.8,2.193911]
[1727802798747,1.6384,2496.9,2495.8,2.193911]
[1727802798748,4.0061,2496.2,2495.8,2.193911]
[1727802798955,4.0061,2496.2,2495.6,0.55]
[1727802798956,4.00626,2496.1,2495.6,0.55]
[1727802799111,4.00626,2496.1,2495.5,1.6563]
[1727802799112,4.00636,2496.1,2495.5,1.6563]
[1727802799467,8.01273,2496.1,2495.5,5.6635]
[1727802799604,8.01273,2496.1,2495.5,1.6563]
[1727802799605,8.01275,2496.1,2495.5,1.6563]
[1727802799806,4.00657,2495.9,2495.5,1.6563]
[1727802800011,4.00657,2495.9,2495.2,1.6203]
[1727802800245,4.00637,2496.1,2495.4,4.00731]
[1727802800246,4.00641,2496.0,2495.4,4.00731]
[1727802800810,4.00685,2495.8,2495.3,3.0]
[1727802801010,4.00666,2495.9,2495.2,6.028669]
[1727802801250,4.00699,2495.7,2495.2,2.021079]
[1727802801428,4.00666,2495.9,2495.2,6.028639]
[1727802801611,4.00689,2495.7,2495.3,0.55]
[1727802801811,4.00689,2495.7,2494.9,1.5111]
[1727802801812,4.00745,2495.4,2494.9,1.5111]
[1727802802151,4.00755,2495.3,2494.7,4.00849]
[1727802802336,1.6024,2495.6,2494.6,1.5111]
[1727802802337,4.00781,2495.2,2494.6,1.5111]
[1727802802549,1.6024,2495.6,2494.6,1.5111]
[1727802802712,4.6024,2495.6,2495.0,4.00799]
[1727802802908,5.56048,2495.9,2495.1,4.00776]
[1727802803112,5.56048,2495.9,2495.0,4.408729]
[1727802803113,4.00691,2495.7,2495.0,4.408729]
[1727802803309,1.5538,2495.9,2495.0,0.400799]
[1727802803553,4.00735,2495.5,2494.7,3.0]
[1727802803736,4.00693,2495.7,2494.6,1.5111]
[1727802803940,1.5538,2495.9,2494.6,1.5111]
[1727802803941,4.00784,2495.2,2494.6,1.5111]
[1727802804189,4.00784,2495.2,2494.6,5.51973]
[1727802804460,4.00784,2495.2,2494.6,1.5111]
[1727802804461,4.00779,2495.2,2494.6,1.5111]
[1727802804760,4.0082,2494.9,2494.3,4.00902]
[1727802804966,4.0082,2494.9,2494.2,5.61724]
[1727802805115,1.5899,2495.2,2494.2,5.61724]
[1727802805116,8.01591,2495.1,2494.2,1.608]
[1727802805453,4.0085,2494.7,2493.9,4.00969]
[1727802805950,1.5955,2494.6,2494.0,4.00955]
[1727802806149,5.60417,2494.6,2494.0,4.00955]
[1727802806358,1.5955,2494.6,2494.0,4.00955]
[1727802806653,1.5955,2494.6,2493.8,5.62848]
[1727802806892,4.00919,2494.3,2493.6,8.02031]
[1727802807040,1.5955,2494.6,2494.0,4.00948]
[1727802807245,1.5955,2494.6,2493.9,4.00978]
[1727802807586,1.5955,2494.6,2493.7,4.00995]
[1727802807587,4.00915,2494.3,2493.7,4.00995]
[1727802807945,4.00899,2494.4,2493.8,4.00994]
[1727802808159,4.00899,2494.4,2493.6,0.954621]
[1727802808160,8.01811,2494.4,2493.7,4.00998]
[1727802808360,4.00922,2494.3,2493.7,4.00998]
[1727802808642,1.5955,2494.6,2493.7,4.00998]
[1727802808643,4.00896,2494.5,2493.8,4.00987]
[1727802808884,4.00907,2494.4,2493.8,0.55]
[1727802809176,4.569246,2494.5,2493.8,4.55993]
[1727802809381,4.569246,2494.5,2493.7,4.00998]
[1727802810085,4.569246,2494.5,2492.6,4.01176]
[1727802810086,1.5058,2493.3,2492.6,4.01176]
[1727802810289,1.5058,2493.3,2492.9,1.49632654]
[1727802810442,5.51655,2493.3,2492.4,4.01211]
[1727802810807,0.551655,2493.2,2492.4,4.01214]
[1727802811190,5.51657,2493.3,2492.3,1.516]
[1727802811191,1.5058,2493.3,2492.6,4.01187]
[1727802811487,1.5058,2493.3,2492.6,4.01179]
[1727802811658,1.5058,2493.3,2492.6,8.02357]
[1727802811855,1.5058,2493.3,2492.8,4.01145]
[1727802812180,1.5058,2493.3,2493.0,4.01121]
[1727802812380,1.5058,2493.3,2492.6,4.01175]
[1727802812590,1.5058,2493.3,2492.8,4.01144]
[1727802812944,1.5058,2493.3,2492.7,4.64173424]
[1727802813146,1.5058,2493.3,2492.7,4.56169]
[1727802813376,1.5058,2493.3,2492.3,4.516]
[1727802813377,4.01091,2493.2,2492.4,4.01207]
[1727802813583,4.01091,2493.2,2492.3,5.52824]
[1727802813807,4.01091,2493.2,2491.8,3.64632747]
[1727802813808,4.01171,2492.7,2492.0,4.01272]
[1727802814092,4.01171,2492.7,2491.8,4.1349324]
[1727802814093,4.01214,2492.5,2491.8,4.1348724]
[1727802814656,1.5682,2492.8,2491.8,4.1348724]
[1727802814853,1.5324,2492.3,2491.8,0.1218324]
[1727802815052,4.01292,2492.0,2491.8,0.1218324]
[1727802815297,5.5454,2491.9,2491.8,0.1218324]
[1727802815598,8.5454,2491.9,2491.8,0.1218324]
[1727802815893,4.5324,2491.9,2491.8,0.1218324]
[1727802816206,1.6538,2492.3,2491.9,4.01299]
[1727802816409,4.01166,2492.8,2491.8,0.1218324]
[1727802816410,1.5697,2492.8,2491.8,0.1218324]
[1727802816563,5.58128,2492.8,2492.0,4.01282]
[1727802816760,1.5697,2492.8,2492.6,4.01178]
[1727802817360,0.41843704,2493.5,2493.4,4.01058]
[1727802817716,0.41843704,2493.5,2493.3,4.01064]
[1727802817857,1.5697,2493.7,2493.1,4.01096]
[1727802818207,2.127677,2493.7,2493.1,4.01096]
[1727802818370,6.137897,2493.7,2493.1,4.01096]
[1727802818572,2.127677,2493.7,2492.8,4.01149]
[1727802818766,2.127677,2493.7,2493.1,4.01091]
[1727802818961,2.127677,2493.7,2492.9,0.55]
[1727802818962,4.01036,2493.6,2492.9,4.01123]
[1727802819205,1.6658,2493.1,2492.5,4.01189]
[1727802819698,1.6658,2493.1,2492.7,4.0117]
[1727802820603,1.6658,2493.1,2492.0,1.5604]
[1727802820604,5.677,2493.1,2492.3,4.01219]
[1727802820777,1.6658,2493.1,2492.1,4.01258]
[1727802820981,1.6658,2493.1,2492.7,4.01163]
[1727802821307,1.6658,2493.1,2492.5,4.01191]
[1727802821308,2.533462,2493.1,2492.5,4.01191]
[1727802821518,8.67688,2493.1,2492.5,4.01191]
[1727802821830,8.67688,2493.1,2491.8,0.1218324]
[1727802821831,4.01195,2492.6,2491.9,4.0129]
[1727802822130,4.01195,2492.6,2491.9,4.013]
[1727802822282,4.01208,2492.5,2491.9,4.013]
[1727802822685,4.01171,2492.7,2492.1,4.01266]
[1727802822924,4.980336,2492.6,2491.9,4.013]
[1727802823122,4.01279,2492.1,2491.8,0.1218324]
[1727802823335,4.013,2491.9,2491.8,0.1218324]
[1727802823618,8.527,2491.9,2491.8,0.1218324]
[1727802823821,1.514,2491.9,2491.8,0.1218324]
[1727802824192,4.01237,2492.3,2491.8,0.1218324]
[1727802824392,4.01254,2492.2,2491.8,0.1218324]
[1727802824611,4.563907,2492.3,2491.8,0.1218324]
[1727802824921,4.01293,2492.0,2491.8,0.1218324]
[1727802825428,4.01295,2492.0,2491.8,0.1218324]
[1727802825986,3.0,2492.2,2491.8,0.1218324]
[1727802826185,0.551537,2492.3,2491.8,4.1348924]
[1727802826186,3.551537,2492.3,2491.8,4.1348924]
[1727802826434,3.0,2492.4,2491.8,0.1218324]
[1727802826583,4.01249,2492.3,2491.8,0.1218324]
[1727802827090,7.01234,2492.4,2491.8,4.1349624]
[1727802827639,4.00735,2495.5,2491.8,4.1349624]
[1727802827640,1.5426,2493.3,2492.8,4.01155]
[1727802827836,5.55449,2492.6,2492.0,4.01275]
[1727802828147,1.5426,2492.6,2492.0,4.01275]
[1727802828286,5.55457,2492.6,2492.0,4.01275]
[1727802828701,4.01213,2492.5,2491.8,4.1348924]
[1727802828897,1.6439,2493.1,2491.8,4.1349524]
[1727802829134,1.6439,2493.6,2493.0,4.01122]
[1727802829374,4.00986,2493.9,2493.2,4.0109]
[1727802829542,9.65333,2493.9,2493.2,4.0109]
[1727802829737,9.65333,2493.9,2492.3,4.01233]
[1727802829738,4.01078,2493.3,2492.6,4.01174]
[1727802829936,5.64359,2493.8,2492.5,0.55]
[1727802829937,1.6336,2493.2,2492.5,0.55]
[1727802830170,1.6336,2493.2,2492.3,0.55]
[1727802830171,4.01152,2492.9,2492.3,0.55]
[1727802830379,4.813795,2492.9,2492.3,0.55]
[1727802830562,4.01157,2492.8,2492.3,0.55]
[1727802830738,0.802275,2492.9,2492.3,0.55]
[1727802831075,1.6336,2493.2,2492.5,0.55]
[1727802831222,5.64458,2493.2,2492.6,4.01171]
[1727802831427,1.6336,2493.2,2492.4,0.55]
[1727802831653,4.01117,2493.1,2492.5,4.01201]
[1727802831853,4.01131,2493.0,2492.4,4.56219]
[1727802832737,4.01131,2493.0,2492.4,0.55]
[1727802832937,4.01131,2493.0,2492.5,4.01203]
[1727802833171,0.564477,2493.1,2491.8,0.1218324]
[1727802833172,0.564477,2493.1,2492.2,0.55]
[1727802833328,4.01138,2493.0,2492.4,4.01219]
[1727802833759,6.06294621,2493.2,2492.7,4.01163]
[1727802833760,2.05191621,2493.2,2492.7,4.01163]
[1727802833959,0.41831621,2493.2,2492.9,4.01126]
[1727802834128,1.5712,2493.5,2492.5,0.55]
[1727802834327,1.5712,2493.5,2492.8,4.0114]
[1727802834328,5.58163,2493.5,2492.8,4.0114]
[1727802834625,5.58163,2493.5,2492.8,4.01154]
[1727802834626,1.00101856,2493.4,2492.8,4.01154]
[1727802834826,1.00101856,2493.4,2492.4,1.5325]
[1727802835075,4.01075,2493.3,2492.6,4.01172]
[1727802835371,4.01092,2493.2,2492.7,4.01161]
[1727802835588,7.01069,2493.4,2492.6,4.01172]
[1727802835728,7.01069,2493.4,2492.8,4.01154]
[1727802835922,7.01069,2493.4,2492.6,8.02351]
[1727802836160,4.01092,2493.2,2492.6,4.01172]
[1727802836370,0.858189,2493.3,2492.5,0.55]
[1727802836539,4.0106,2493.4,2492.7,4.01165]
[1727802836727,4.0106,2493.4,2492.5,0.55]
[1727802836728,8.58163,2493.5,2492.9,4.01136]
[1727802837078,8.58163,2493.5,2492.5,0.55]
[1727802837079,4.00949,2494.1,2493.1,1.5361]
[1727802837280,5.55929,2494.1,2493.5,4.01029]
[1727802837441,6.115219,2494.1,2493.2,0.08020761]
[1727802837647,6.115219,2494.1,2493.3,0.55]
[1727802837648,1.5498,2494.1,2493.3,0.55]
[1727802837972,0.41818066,2494.3,2493.1,1.5361]
[1727802837973,0.41818066,2494.3,2493.5,4.56042]
[1727802838177,4.00987,2493.9,2493.3,4.01063]
[1727802838363,6.70646747,2493.8,2493.1,5.54702]
[1727802838526,4.0108,2493.3,2492.7,4.01162]
[1727802838732,4.0105,2493.5,2492.5,1.5507]
[1727802838954,4.0105,2493.5,2492.8,4.01141]
[1727802839231,4.01054,2493.5,2492.9,4.01126]
[1727802839433,4.01034,2493.6,2493.0,4.01111]
[1727802839742,4.01034,2493.6,2493.0,4.01114]
[1727802839743,4.0103,2493.6,2493.0,4.01114]
[1727802839946,4.0103,2493.6,2492.5,5.56272]
[1727802839947,1.37167675,2493.6,2492.5,5.56272]
[1727802840153,1.37167675,2493.6,2492.6,0.55]
[1727802840353,5.38202675,2493.6,2493.1,4.01093]
[1727802840538,4.01053,2493.5,2493.0,4.01115]
[1727802840751,1.37167675,2493.6,2492.8,4.0115]
[1727802840982,4.44774768,2493.5,2492.6,0.55]
[1727802841142,1.37167675,2493.6,2492.6,0.55]
[1727802841143,1.37167675,2493.6,2493.1,4.01106]
[1727802841349,1.37167675,2493.6,2492.6,0.55]
[1727802841350,1.5801,2493.8,2493.0,4.56119]
[1727802841571,4.00955,2494.1,2493.3,4.56061]
[1727802841769,4.01021,2493.7,2493.2,0.55]
[1727802841984,4.01038,2493.6,2493.1,4.01103]
[1727802842349,1.31469575,2493.6,2492.8,5.64096]
[1727802842548,4.01055,2493.5,2492.9,4.0113]
[1727802842746,1.6257,2493.7,2492.8,4.01146]
[1727802842950,4.01059,2493.4,2492.9,4.01138]
[1727802843149,4.01095,2493.2,2492.5,1.5754]
[1727802843351,5.59648,2493.0,2492.2,1.5754]
[1727802843578,1.5851,2493.0,2492.2,5.58785]
[1727802843847,5.57059,2493.4,2492.8,4.01146]
[1727802844094,5.57062,2493.4,2492.6,4.01175]
[1727802844270,1.5599,2493.8,2493.3,4.01067]
[1727802844443,1.5599,2493.8,2492.9,1.5199]
[1727802844444,5.56986,2493.8,2493.2,4.01076]
[1727802844644,0.957969,2493.7,2493.2,4.01076]
[1727802844890,0.957969,2493.7,2493.4,4.01058]
[1727802845088,0.957969,2493.7,2493.2,0.55]
[1727802845398,0.957969,2493.7,2492.9,1.5199]
[1727802845399,4.00959,2494.1,2493.0,0.55]
[1727802845683,4.00959,2494.1,2493.6,4.01017]
[1727802845987,4.00962,2494.0,2493.5,4.01042]
[1727802846300,1.6461,2494.2,2493.0,0.55]
[1727802846499,4.01004,2493.8,2493.0,0.55]
[1727802846792,4.01004,2493.8,2493.2,4.01076]
[1727802847084,6.07364972,2494.2,2493.7,4.01008]
[1727802847388,6.07364972,2494.2,2493.5,5.63262]
[1727802847389,4.00969,2494.0,2493.5,5.63262]
[1727802847593,6.07367972,2494.2,2493.0,3.55]
[1727802847594,4.0099,2493.9,2493.2,1.5308]
[1727802847889,1.21650347,2495.4,2495.3,4.00753]
[1727802848098,1.21650347,2495.4,2495.3,11.19139297]
[1727802848297,2.46900231,2496.6,2495.5,4.00718]
[1727802848458,2.46900231,2496.6,2495.4,3.0]
[1727802848662,4.00563,2496.5,2495.8,4.00664]
[1727802848857,0.966917,2496.4,2495.7,4.00677]
[1727802849170,0.966917,2496.4,2495.6,4.00691]
[1727802849171,4.972787,2496.4,2495.6,4.00691]
[1727802849405,4.972787,2496.4,2495.7,4.00688]
[1727802849694,4.972687,2496.4,2495.6,4.00691]
[1727802850498,4.972767,2496.4,2495.4,4.55726]
[1727802850703,0.4972767,2496.3,2495.6,4.00695]
[1727802850854,1.5899,2497.2,2495.4,0.63013761]
[1727802851192,1.5899,2497.2,2495.4,0.55]
[1727802851494,1.5899,2497.2,2495.9,4.00647]
[1727802851700,1.5341,2496.8,2495.6,4.00697]
[1727802851947,1.5341,2496.8,2495.8,4.00667]
[1727802852063,1.5341,2496.8,2495.9,4.00646]
[1727802852257,4.00554,2496.6,2495.8,4.00664]
[1727802852503,1.5341,2496.8,2495.6,4.00689]
[1727802852504,7.406154,2496.5,2495.6,4.00689]
[1727802853094,4.00585,2496.4,2495.6,4.00689]
[1727802853400,4.00601,2496.3,2495.5,4.00715]
[1727802853698,1.522,2496.1,2495.6,4.00703]
[1727802853859,0.85281,2496.0,2495.3,5.53822]
[1727802854059,0.85281,2496.0,2495.5,4.00719]
[1727802854301,1.522,2496.1,2495.6,4.00694]
[1727802854666,1.522,2496.1,2495.5,4.00711]
[1727802854861,1.522,2496.1,2495.6,4.00696]
[1727802855056,1.522,2496.1,2495.6,4.00701]
[1727802855765,5.52825,2496.1,2495.6,0.55]